bitfinex-derivatives/quotes_BTCF0:USTF0_20251219
["timestamp","ask_amount","ask_price","bid_price","bid_amount"]
[1766120455576,0.017244,87134.0,87120.0,0.19783402]
[1766120455880,0.017244,87134.0,87116.0,0.0114863]
[1766120456078,0.017244,87134.0,87118.0,0.0114861]
[1766120456877,0.017244,87134.0,87120.0,0.19783402]
[1766120457584,0.0114844,87131.0,87120.0,0.19783402]
[1766120457775,0.0114844,87131.0,87115.0,0.0172465]
[1766120457975,0.00576,87134.0,87115.0,0.00576]
[1766120458275,0.00017218,87136.0,87115.0,0.00576]
[1766120458276,0.00017218,87136.0,87121.0,0.0114856]
[1766120458477,0.00576,87133.0,87120.0,0.20359402]
[1766120458678,0.0172442,87133.0,87120.0,0.20359402]
[1766120458983,0.0114842,87133.0,87120.0,0.20359402]
[1766120459782,0.00593218,87136.0,87120.0,0.20359402]
[1766120460080,0.00593218,87136.0,87120.0,0.00576]
[1766120460272,0.0114847,87129.0,87120.0,0.00576]
[1766120461077,0.0114843,87132.0,87120.0,0.00576]
[1766120461276,0.0114842,87133.0,87120.0,0.00576]
[1766120461887,0.0114842,87133.0,87120.0,0.20359402]
[1766120462085,0.01741598,87136.0,87120.0,0.20359402]
[1766120462673,0.0114841,87133.0,87120.0,0.20359402]
[1766120463986,0.0114841,87133.0,87120.0,0.00576]
[1766120464185,0.0114841,87133.0,87120.0,0.20359402]
[1766120465276,0.0114844,87131.0,87120.0,0.20359402]
[1766120466476,0.0114847,87129.0,87120.0,0.00576]
[1766120467382,0.19783402,87130.0,87111.0,0.00017218]
[1766120467576,0.0114849,87127.0,87112.0,0.00156]
[1766120468184,0.0114846,87130.0,87114.0,0.0114866]
[1766120468385,0.0168846,87130.0,87114.0,0.0114866]
[1766120470486,0.00576,87129.0,87114.0,0.0114866]
[1766120471783,0.00576,87129.0,87116.0,0.0114863]
[1766120473383,0.0054,87130.0,87116.0,0.0114863]
[1766120475393,0.0114847,87129.0,87113.0,0.0114867]
[1766120476691,0.011485,87127.0,87113.0,0.0114867]
[1766120477392,0.0114852,87125.0,87112.0,0.00156]
[1766120478878,0.0054,87130.0,87112.0,0.00156]
[1766120479093,0.0114848,87128.0,87112.0,0.00156]
[1766120479592,0.0114852,87125.0,87112.0,0.00156]
[1766120480593,0.00576,87126.0,87112.0,0.00156]
[1766120481792,0.00576,87126.0,87112.0,0.0130468]
[1766120484786,0.00576,87126.0,87112.0,0.00156]
[1766120486785,0.00576,87126.0,87113.0,0.0114867]
[1766120487499,0.00576,87126.0,87112.0,0.00156]
[1766120487895,0.0114853,87124.0,87112.0,0.00156]
[1766120488094,0.011486,87119.0,87112.0,0.00156]
[1766120488292,0.00576,87126.0,87111.0,0.00017218]
[1766120488293,0.0114862,87118.0,87111.0,0.00017218]
[1766120488697,0.0114864,87116.0,87111.0,0.00017218]
[1766120489001,0.0114864,87116.0,87107.0,0.00113937]
[1766120489199,0.0114864,87116.0,87101.0,0.0172483]
[1766120489694,0.00576,87117.0,87101.0,0.0172483]
[1766120491402,0.0172462,87117.0,87101.0,0.0172483]
[1766120491785,0.00576,87117.0,87105.0,0.0114878]
[1766120491991,0.00576,87117.0,87108.0,0.0114874]
[1766120492398,0.00593218,87118.0,87108.0,0.0114874]
[1766120492600,2.18e-06,87119.0,87110.0,0.0114871]
[1766120492799,0.0054,87130.0,87110.0,0.00576]
[1766120493103,0.00168,87134.0,87120.0,0.19786144]
[1766120493396,0.07537905,87152.0,87120.0,0.19786144]
[1766120493397,0.0114823,87147.0,87131.0,0.0114843]
[1766120493602,0.00017218,87148.0,87136.0,0.0114837]
[1766120493800,0.0788361,87153.0,87136.0,0.0114837]
[1766120493801,0.0172415,87153.0,87136.0,0.0114837]
[1766120494398,0.0615946,87158.0,87140.0,0.19786144]
[1766120494590,0.0114807,87159.0,87141.0,0.0172429]
[1766120494793,0.0615946,87161.0,87145.0,0.0114824]
[1766120495197,0.0730749,87162.0,87150.0,0.19786144]
[1766120495507,0.08240847,87183.0,87165.0,0.0114799]
[1766120495698,0.0114773,87185.0,87167.0,0.0114796]
[1766120496094,0.0114773,87185.0,87166.0,0.00568]
[1766120496297,0.0114776,87183.0,87166.0,0.00568]
[1766120496809,0.0114779,87180.0,87166.0,0.00568]
[1766120497097,0.09964517,87189.0,87166.0,0.00568]
[1766120497298,0.0114799,87166.0,87146.0,0.0114823]
[1766120497501,0.0114801,87164.0,87147.0,0.00576]
[1766120497694,0.00576,87180.0,87147.0,0.00576]
[1766120497695,0.0114803,87163.0,87147.0,0.00576]
[1766120498006,0.0114797,87167.0,87150.0,0.19786144]
[1766120498303,0.01165156,87167.0,87150.0,0.00017207]
[1766120499204,0.0114798,87166.0,87150.0,0.00017207]
[1766120499804,0.0114802,87164.0,87150.0,0.00017207]
[1766120500306,0.00017186,87167.0,87150.0,0.00017207]
[1766120500803,0.00017186,87167.0,87142.0,0.0114829]
[1766120500991,0.0114799,87165.0,87144.0,0.0114826]
[1766120501909,0.0114803,87163.0,87146.0,0.00017207]
[1766120502407,0.0114798,87166.0,87146.0,0.00017207]
[1766120502706,0.00017186,87167.0,87146.0,0.00017207]
[1766120502707,0.0114802,87163.0,87146.0,0.00017207]
[1766120503305,0.01165166,87167.0,87146.0,0.01165437]
[1766120503617,0.01165166,87167.0,87149.0,0.011482]
[1766120503908,0.01165166,87167.0,87146.0,0.01165447]
[1766120504108,0.01165166,87167.0,87149.0,0.0114819]
[1766120505511,0.01148,87164.0,87146.0,0.00017207]
[1766120505902,0.01148,87164.0,87146.0,0.01165447]
[1766120506101,0.01165156,87167.0,87146.0,0.01165447]
[1766120506810,0.01148,87165.0,87146.0,0.01165447]
[1766120507012,0.01148,87165.0,87146.0,0.00017207]
[1766120507904,0.00017186,87167.0,87147.0,0.0114822]
[1766120508516,0.0114798,87166.0,87147.0,0.0114822]
[1766120509015,0.0114801,87164.0,87147.0,0.0114822]
[1766120510213,0.00017186,87167.0,87146.0,0.00017207]
[1766120510409,0.00017186,87167.0,87145.0,0.0012]
[1766120510410,0.0114808,87159.0,87145.0,0.0012]
[1766120510710,0.0114804,87162.0,87145.0,0.0012]
[1766120511311,0.0114802,87163.0,87145.0,0.00137207]
[1766120511710,0.0114798,87166.0,87148.0,0.0114821]
[1766120511916,0.0114798,87166.0,87145.0,0.00137207]
[1766120512112,0.011479,87173.0,87145.0,0.00137207]
[1766120512909,0.0114791,87171.0,87155.0,0.0114811]
[1766120513109,0.0114791,87171.0,87156.0,0.00404]
[1766120513417,0.00017207,87172.0,87156.0,0.00404]
[1766120513626,0.0114795,87169.0,87156.0,0.00404]
[1766120514504,0.0114797,87167.0,87156.0,0.00404]
[1766120515018,0.00017207,87172.0,87156.0,0.00404]
[1766120515212,0.00017207,87172.0,87147.0,0.0114822]
[1766120515417,0.00017207,87172.0,87148.0,0.00368]
[1766120516010,0.00368,87171.0,87147.0,0.0114822]
[1766120516212,0.00368,87171.0,87148.0,0.00368]
[1766120516406,0.0114803,87162.0,87145.0,0.00017207]
[1766120516611,0.0114803,87162.0,87146.0,0.00252]
[1766120516812,0.0114803,87162.0,87146.0,0.0140023]
[1766120517012,0.0114803,87162.0,87146.0,0.00252]
[1766120517312,0.0114806,87160.0,87146.0,0.00252]
[1766120517523,0.00576,87162.0,87145.0,2.07e-06]
[1766120517711,0.0114818,87151.0,87134.0,0.0114839]
[1766120517916,0.0114806,87160.0,87135.0,0.00568]
[1766120518113,0.0114806,87160.0,87136.0,0.0114837]
[1766120518415,0.0114815,87154.0,87136.0,0.0114837]
[1766120518620,0.01165357,87154.0,87136.0,0.01165577]
[1766120519021,0.01165357,87154.0,87138.0,0.0114834]
[1766120519222,0.00017207,87154.0,87138.0,0.0114834]
[1766120521427,0.0114815,87153.0,87138.0,0.0114834]
[1766120521809,0.00017207,87154.0,87140.0,0.0114832]
[1766120522615,0.0114818,87151.0,87136.0,0.00017207]
[1766120522924,0.0114819,87150.0,87137.0,0.00576]
[1766120523314,0.0114829,87143.0,87124.0,0.0114852]
[1766120523512,0.0114836,87137.0,87125.0,0.00448]
[1766120523712,0.0114836,87137.0,87121.0,0.0114857]
[1766120523919,0.0114833,87140.0,87122.0,0.00576]
[1766120524317,0.0114833,87140.0,87123.0,0.0114853]
[1766120525017,0.0114829,87143.0,87125.0,0.0114851]
[1766120525527,0.0114831,87141.0,87125.0,0.0114851]
[1766120526627,0.0114831,87141.0,87122.0,0.00593207]
[1766120526815,0.0114834,87139.0,87122.0,0.00593207]
[1766120527015,0.19776062,87150.0,87122.0,0.00593207]
[1766120527227,0.011484,87134.0,87122.0,0.00593207]
[1766120527920,0.01166068,87136.0,87122.0,0.00017207]
[1766120528126,0.19776062,87132.0,87111.0,0.0114869]
[1766120528316,0.0114847,87129.0,87112.0,0.00576]
[1766120529228,0.01165688,87129.0,87113.0,0.0114867]
[1766120529819,0.01705688,87129.0,87113.0,0.0114867]
[1766120530629,0.00557218,87129.0,87113.0,0.0114867]
[1766120530826,0.00557218,87129.0,87116.0,0.0114863]
[1766120532927,0.00557218,87129.0,87112.0,0.00593218]
[1766120532928,0.01705688,87129.0,87113.0,0.0114867]
[1766120533117,0.00557218,87129.0,87112.0,0.00017218]
[1766120533318,0.0114838,87136.0,87113.0,0.00164]
[1766120533319,0.0114843,87132.0,87113.0,0.00164]
[1766120533521,0.0114843,87132.0,87116.0,0.0114863]
[1766120534032,0.0114843,87132.0,87113.0,0.0131267]
[1766120534229,0.00017218,87131.0,87115.0,0.0114864]
[1766120534827,0.0114845,87130.0,87113.0,0.00164]
[1766120535024,0.0114853,87124.0,87113.0,0.00164]
[1766120535233,0.0114857,87121.0,87114.0,0.00088]
[1766120535431,0.0114857,87121.0,87112.0,0.00105218]
[1766120536225,0.0114846,87130.0,87112.0,0.00017218]
[1766120536427,0.0114846,87130.0,87083.0,0.06425796]
[1766120536428,0.0114848,87128.0,87099.0,0.0114885]
[1766120536629,0.0114865,87116.0,87103.0,0.00164]
[1766120537537,0.0114867,87114.0,87103.0,0.00164]
[1766120537730,0.0114868,87113.0,87103.0,0.00164]
[1766120539241,0.0114864,87116.0,87103.0,0.00164]
[1766120539736,0.0114867,87114.0,87103.0,0.00164]
[1766120539926,0.00576,87118.0,87101.0,0.00017218]
[1766120540638,0.0114867,87114.0,87101.0,0.00017218]
[1766120541240,0.0114869,87112.0,87101.0,0.00017218]
[1766120541737,0.0114868,87113.0,87101.0,0.00017218]
[1766120542950,0.00576,87118.0,87102.0,0.0114882]
[1766120543138,0.00576,87118.0,87104.0,0.0114879]
[1766120543656,0.0114856,87122.0,87105.0,0.0114878]
[1766120543843,0.0114841,87133.0,87109.0,0.0114872]
[1766120543844,0.00576,87124.0,87109.0,0.0114872]
[1766120544330,0.0172453,87124.0,87106.0,0.0114876]
[1766120544837,0.00576,87124.0,87101.0,0.01166048]
[1766120545034,0.0114865,87115.0,87101.0,0.00017218]
[1766120545234,0.0114868,87113.0,87101.0,0.00017218]
[1766120545429,0.00576,87124.0,87101.0,0.00017218]
[1766120545430,0.011487,87112.0,87101.0,0.00017218]
[1766120545639,0.0114872,87110.0,87102.0,0.00576]
[1766120545834,0.0114856,87122.0,87102.0,0.00576]
[1766120545835,0.00576,87124.0,87102.0,0.00576]
[1766120546037,0.0114864,87116.0,87102.0,0.00576]
[1766120546840,0.011486,87119.0,87102.0,0.00576]
[1766120547343,0.0114856,87122.0,87103.0,0.011488]
[1766120547544,0.0114859,87120.0,87103.0,0.011488]
[1766120547946,0.0114861,87118.0,87103.0,0.011488]
[1766120548136,0.0114861,87118.0,87102.0,0.00576]
[1766120548337,0.00576,87123.0,87102.0,0.00576]
[1766120548338,0.0114867,87114.0,87102.0,0.00576]
[1766120549043,0.0114873,87110.0,87101.0,0.00017218]
[1766120549242,0.0114873,87110.0,87101.0,0.00593218]
[1766120550047,0.19793172,87120.0,87101.0,0.00593218]
[1766120550345,0.0114872,87110.0,87101.0,0.00593218]
[1766120551249,0.0114865,87116.0,87101.0,0.00593218]
[1766120551447,0.0114861,87119.0,87102.0,0.0114882]
[1766120551646,0.0114856,87122.0,87104.0,0.0114879]
[1766120551853,0.0114857,87122.0,87101.0,0.00593218]
[1766120552043,0.00576,87123.0,87106.0,0.0114877]
[1766120552244,0.00576,87123.0,87110.0,0.19793172]
[1766120553052,0.00576,87123.0,87101.0,0.00593218]
[1766120553253,0.00576,87123.0,87110.0,0.19793172]
[1766120554653,0.00576,87123.0,87108.0,0.0172473]
[1766120554848,0.00576,87123.0,87110.0,0.20941882]
[1766120555056,0.00576,87123.0,87110.0,0.0114871]
[1766120555246,0.00576,87123.0,87110.0,0.20941882]
[1766120555445,0.00576,87123.0,87110.0,0.0114871]
[1766120555646,0.00576,87123.0,87110.0,0.20941882]
[1766120556958,0.00017218,87131.0,87110.0,0.19793172]
[1766120556959,0.01165668,87131.0,87110.0,0.19793172]
[1766120557749,0.01165668,87131.0,87116.0,0.0114863]
[1766120557956,0.00017218,87131.0,87118.0,0.011486]
[1766120558461,0.00593218,87131.0,87118.0,0.011486]
[1766120560067,0.0114846,87130.0,87115.0,0.0172464]
[1766120560972,0.0114848,87128.0,87115.0,0.00576]
[1766120561366,0.0114851,87126.0,87115.0,0.00576]
[1766120561972,0.19793172,87130.0,87115.0,0.00576]
[1766120562171,0.19793172,87130.0,87116.0,0.00576]
[1766120562469,0.0114862,87118.0,87113.0,0.00576]
[1766120562864,0.0114862,87118.0,87103.0,2.41292]
[1766120562865,0.19793172,87120.0,87101.0,0.00017218]
[1766120563061,0.0114867,87114.0,87102.0,0.00576]
[1766120563266,0.19793172,87120.0,87101.0,0.00017218]
[1766120563469,0.19793172,87120.0,87102.0,0.00576]
[1766120564078,0.0114868,87113.0,87102.0,0.00576]
[1766120564269,0.0114871,87111.0,87102.0,0.00576]
[1766120565071,0.011487,87111.0,87098.0,0.00805628]
[1766120565378,0.0114874,87109.0,87098.0,0.00805628]
[1766120566071,0.19793172,87112.0,87098.0,0.00805628]
[1766120566277,0.0114883,87102.0,87095.0,7e-08]
[1766120566662,0.19793172,87105.0,87087.0,0.00576]
[1766120566867,0.19793172,87100.0,87087.0,0.00576]
[1766120567268,0.011489,87097.0,87087.0,0.00576]
[1766120568074,0.20942022,87100.0,87087.0,0.00576]
[1766120568271,0.00017218,87112.0,87090.0,0.19793172]
[1766120568272,0.00576,87105.0,87090.0,0.19793172]
[1766120568575,0.0172478,87106.0,87090.0,0.19793172]
[1766120569376,0.0172478,87106.0,87088.0,0.01149]
[1766120569566,0.00576,87106.0,87087.0,0.00576]
[1766120569771,0.0114884,87101.0,87087.0,0.00576]
[1766120570080,0.0114887,87099.0,87087.0,0.00576]
[1766120570476,0.0114889,87097.0,87087.0,0.00576]
[1766120570669,0.00576,87106.0,87087.0,0.00576]
[1766120571477,0.0114888,87098.0,87087.0,0.00576]
[1766120572376,0.0114884,87101.0,87087.0,0.00576]
[1766120572975,0.0114887,87099.0,87087.0,0.00576]
[1766120574178,0.0114894,87093.0,87087.0,0.00576]
[1766120576181,0.011489,87096.0,87087.0,0.00576]
[1766120577281,0.0114893,87094.0,87087.0,0.00576]
[1766120578886,0.0114889,87097.0,87087.0,0.00576]
[1766120579784,0.0114892,87095.0,87087.0,0.00576]
[1766120580282,0.0114894,87093.0,87087.0,0.00576]
[1766120580469,0.0114891,87096.0,87087.0,0.00576]
[1766120585979,0.0114891,87096.0,87083.0,0.00011851]
[1766120586181,0.0172487,87099.0,87083.0,0.00011851]
[1766120587983,0.0172487,87099.0,87084.0,0.0114906]
[1766120589787,0.00576,87099.0,87083.0,0.00011851]
[1766120589987,0.19800236,87110.0,87089.0,0.19800236]
[1766120590170,0.00576,87109.0,87100.0,0.19800236]
[1766120590374,0.00017218,87112.0,87100.0,0.19800236]
[1766120590571,0.00017218,87112.0,87090.0,0.20376236]
[1766120590572,0.00576,87110.0,87090.0,0.20376236]
[1766120590777,0.00017218,87112.0,87100.0,0.19800236]
[1766120591382,0.00017218,87112.0,87101.0,0.00576]
[1766120591691,0.00576,87119.0,87110.0,0.0114871]
[1766120592379,0.0616426,87118.0,87101.0,0.00576]
[1766120592578,0.06181478,87118.0,87107.0,0.0114875]
[1766120592887,0.06181478,87118.0,87104.0,0.0114879]
[1766120593281,0.06181478,87118.0,87101.0,0.00593218]
[1766120593486,0.06181478,87118.0,87106.0,0.0114876]
[1766120593790,0.0616426,87117.0,87103.0,0.011488]
[1766120593983,0.0114864,87116.0,87101.0,0.00593218]
[1766120594185,0.0114864,87116.0,87102.0,0.0114882]
[1766120594392,0.0114864,87116.0,87101.0,0.00593218]
[1766120595084,0.06181478,87118.0,87101.0,0.00593218]
[1766120595484,0.0616426,87117.0,87102.0,0.0114881]
[1766120596488,0.0616426,87117.0,87101.0,0.00593218]
[1766120596689,0.0616426,87117.0,87101.0,0.01742048]
[1766120596988,0.00017218,87118.0,87103.0,0.011488]
[1766120598787,0.0114866,87115.0,87101.0,0.00593218]
[1766120600092,0.00576,87114.0,87080.0,0.04249164]
[1766120600386,0.011488,87104.0,87086.0,0.0114902]
[1766120600579,0.011488,87104.0,87084.0,2.4132]
[1766120600580,0.0018,87107.0,87087.0,0.00576]
[1766120600779,0.00576,87107.0,87091.0,0.0114896]
[1766120600979,0.00576,87107.0,87090.0,0.0114897]
[1766120601190,0.0114877,87106.0,87087.0,0.0172501]
[1766120601388,0.0114877,87106.0,87089.0,0.0114899]
[1766120601581,0.011488,87104.0,87087.0,0.00576]
[1766120601890,0.0114883,87102.0,87087.0,0.00576]
[1766120602279,0.0114885,87100.0,87087.0,0.00576]
[1766120602483,0.0114888,87098.0,87087.0,0.00576]
[1766120602687,0.01165838,87118.0,87083.0,0.00011851]
[1766120602688,0.0114891,87096.0,87083.0,0.00011851]
[1766120602893,0.00017218,87098.0,87083.0,0.00011851]
[1766120603079,0.0114889,87097.0,87083.0,0.00011851]
[1766120604093,0.00017218,87098.0,87083.0,0.00011851]
[1766120605289,0.0114895,87093.0,87083.0,0.00011851]
[1766120606686,0.0114908,87083.0,87063.0,0.0114932]
[1766120606888,0.0114902,87087.0,87064.0,0.00576]
[1766120607090,0.00017218,87084.0,87064.0,0.00576]
[1766120607287,0.00017218,87084.0,87065.0,0.011493]
[1766120607499,0.01160715,87083.0,87064.0,0.00576]
[1766120607788,0.00011645,87083.0,87064.0,0.0172531]
[1766120608094,0.0114909,87082.0,87065.0,0.00576]
[1766120609495,0.0114912,87080.0,87063.0,0.00576]
[1766120610193,0.0114915,87077.0,87057.0,0.00576]
[1766120610395,0.0114919,87075.0,87057.0,0.00576]
[1766120610589,0.00444,87078.0,87057.0,0.00576]
[1766120610791,0.011492,87074.0,87057.0,0.00576]
[1766120610994,0.00444,87078.0,87045.0,0.03100054]
[1766120611188,0.00444,87078.0,87039.0,0.03100054]
[1766120611189,0.20955507,87070.0,87039.0,0.03100054]
[1766120611504,0.19789039,87060.0,87037.0,2.81e-06]
[1766120611693,0.0114942,87057.0,87037.0,2.81e-06]
[1766120611991,0.00576,87056.0,87037.0,2.81e-06]
[1766120612291,0.00576,87055.0,87037.0,2.81e-06]
[1766120612689,0.00576,87055.0,87037.0,0.01149951]
[1766120612890,0.00576,87055.0,87037.0,2.81e-06]
[1766120613395,0.00576,87055.0,87043.0,0.0114959]
[1766120613594,0.00576,87055.0,87045.0,0.0114956]
[1766120614383,0.00576,87055.0,87042.0,0.0114961]
[1766120614906,0.00576,87055.0,87038.0,0.0114965]
[1766120615199,0.00576,87055.0,87037.0,2.81e-06]
[1766120616289,0.00576,87055.0,87047.0,0.0114955]
[1766120617099,0.00010712,87069.0,87040.0,0.19789039]
[1766120617301,0.00010712,87069.0,87050.0,0.19789039]
[1766120617596,1e-07,87070.0,87065.0,0.0114931]
[1766120617806,2.41408,87092.0,87077.0,0.0114915]
[1766120617990,0.0616426,87105.0,87077.0,0.00568]
[1766120618190,0.0114848,87129.0,87077.0,0.00568]
[1766120618191,0.08197934,87130.0,87094.0,0.0114893]
[1766120618390,5e-08,87147.0,87120.0,0.39578078]
[1766120618587,7e-08,87167.0,87137.0,0.19789039]
[1766120618793,0.35932407,87209.0,87157.0,0.19789039]
[1766120618989,0.35932407,87209.0,87150.0,0.19789039]
[1766120618990,0.00017205,87192.0,87174.0,0.00017187]
[1766120619198,0.00017205,87192.0,87175.0,0.0058]
[1766120619396,0.00017205,87192.0,87174.0,0.00017187]
[1766120619590,5e-08,87192.0,87191.0,0.0114765]
[1766120619795,0.0114707,87236.0,87191.0,0.0058]
[1766120620100,0.05,87243.0,87210.0,0.28977654]
[1766120620304,0.20622706,87257.0,87220.0,0.28977654]
[1766120620502,0.20622706,87257.0,87226.0,0.0114719]
[1766120620694,0.00017194,87250.0,87170.0,0.01247909]
[1766120620998,0.28977654,87236.0,87189.0,0.0114767]
[1766120621200,0.0114731,87217.0,87187.0,2.41364]
[1766120621405,2.70341654,87236.0,87187.0,2.41364]
[1766120621406,0.28977654,87220.0,87190.0,0.0114765]
[1766120621602,0.0058,87242.0,87200.0,0.30125174]
[1766120621802,0.00017194,87230.0,87212.0,0.00017161]
[1766120622103,0.00017194,87230.0,87213.0,0.0058]
[1766120622306,0.00017194,87230.0,87212.0,0.00017161]
[1766120622307,0.00017194,87230.0,87212.0,0.00309161]
[1766120625606,0.0114722,87224.0,87212.0,0.00017161]
[1766120625798,0.0114722,87224.0,87170.0,0.00099999]
[1766120625799,0.0114726,87221.0,87183.0,0.0114774]
[1766120625999,0.0114729,87219.0,87183.0,0.0114774]
[1766120626303,0.28977654,87220.0,87170.0,0.28977654]
[1766120626509,0.0114721,87225.0,87180.0,0.28977654]
[1766120626698,0.0114721,87225.0,87181.0,0.0058]
[1766120626898,0.00017194,87212.0,87181.0,0.0058]
[1766120627303,1.94e-06,87212.0,87194.0,0.0114761]
[1766120627505,1.94e-06,87212.0,87195.0,0.0046]
[1766120628202,1.94e-06,87212.0,87195.0,0.00477]
[1766120629005,1.94e-06,87212.0,87195.0,0.00017]
[1766120629206,1.94e-06,87212.0,87196.0,0.0058]
[1766120629918,0.28977654,87210.0,87174.0,2.4116]
[1766120630096,0.0114753,87201.0,87175.0,0.0058]
[1766120630300,0.0114745,87207.0,87176.0,0.0114784]
[1766120630498,1.94e-06,87212.0,87185.0,0.0114772]
[1766120630711,1.94e-06,87212.0,87188.0,0.0114768]
[1766120631310,1.94e-06,87212.0,87189.0,0.00564]
[1766120631608,1.94e-06,87212.0,87190.0,0.0114765]
[1766120631803,1.94e-06,87212.0,87201.0,0.011475]
[1766120632118,1.94e-06,87212.0,87202.0,0.0058]
[1766120634926,1.94e-06,87212.0,87180.0,0.28977654]
[1766120634927,1.94e-06,87212.0,87203.0,0.0058]
[1766120636310,1.94e-06,87212.0,87204.0,0.0114748]
[1766120636707,1.94e-06,87212.0,87207.0,0.0114743]
[1766120637115,1.94e-06,87212.0,87209.0,0.011474]
[1766120637409,1.94e-06,87212.0,87205.0,0.0114746]
[1766120638110,1.94e-06,87212.0,87206.0,0.0058]
[1766120638416,1.94e-06,87212.0,87207.0,0.0058]
[1766120638715,0.00050194,87212.0,87192.0,0.0114763]
[1766120638917,0.00050194,87212.0,87194.0,0.011476]
[1766120639808,1.94e-06,87212.0,87200.0,0.0114752]
[1766120640707,0.0114743,87208.0,87172.0,0.03100054]
[1766120640911,0.00017204,87199.0,87173.0,2.4152]
[1766120641223,0.00017204,87199.0,87164.0,0.03100054]
[1766120641413,0.0114758,87197.0,87172.0,0.0114789]
[1766120641615,0.0114758,87197.0,87173.0,0.0058]
[1766120641915,0.00017204,87199.0,87177.0,0.0114783]
[1766120642115,0.00017204,87199.0,87183.0,0.0114775]
[1766120642316,0.00017204,87199.0,87184.0,0.0171573]
[1766120643222,0.00017204,87199.0,87184.0,0.00568]
[1766120643522,0.00017204,87199.0,87163.0,0.0114801]
[1766120643523,0.01164744,87199.0,87163.0,0.0114801]
[1766120643722,0.01164744,87199.0,87161.0,2.41076]
[1766120643723,0.0114771,87187.0,87165.0,0.0114798]
[1766120644519,0.0114775,87183.0,87164.0,0.00468]
[1766120645018,0.00168,87193.0,87165.0,0.0114799]
[1766120646115,0.0114778,87181.0,87159.0,0.0114806]
[1766120646318,0.0114783,87178.0,87160.0,0.00376]
[1766120646513,0.0114784,87177.0,87157.0,0.0114809]
[1766120646820,0.00017204,87179.0,87159.0,0.0114806]
[1766120647022,0.00017204,87179.0,87147.0,0.03100054]
[1766120647218,0.00017204,87179.0,87074.0,0.26194543]
[1766120647219,0.0114784,87177.0,87153.0,0.03100054]
[1766120647517,0.0114784,87177.0,87155.0,0.0058]
[1766120648125,0.00017204,87179.0,87160.0,0.0114805]
[1766120648615,0.00017204,87179.0,87163.0,0.0114801]
[1766120648818,0.00017204,87179.0,87163.0,0.0172801]
[1766120649015,0.00017204,87179.0,87163.0,0.0058]
[1766120649218,0.00017204,87179.0,87154.0,0.0311065]
[1766120649219,0.00017204,87179.0,87155.0,0.03100054]
[1766120649419,0.011479,87172.0,87156.0,0.0058]
[1766120649618,0.011479,87172.0,87144.0,0.04110787]
[1766120649619,0.0114801,87164.0,87148.0,0.03100054]
[1766120649821,0.0114805,87161.0,87148.0,0.0058]
[1766120650123,0.28977654,87170.0,87139.0,0.03100054]
[1766120650423,0.00017204,87163.0,87140.0,0.0058]
[1766120650619,9.142e-05,87162.0,87143.0,0.0114827]
[1766120650825,9.142e-05,87162.0,87144.0,0.0150826]
[1766120651021,0.01157172,87162.0,87144.0,0.0036]
[1766120651710,0.01157172,87162.0,87144.0,0.00328]
[1766120651914,0.0114807,87159.0,87144.0,0.00328]
[1766120652826,0.0114807,87159.0,87133.0,0.03100054]
[1766120652827,0.0114819,87150.0,87133.0,0.03100054]
[1766120653018,0.0114823,87147.0,87129.0,0.03100054]
[1766120653218,8.071e-05,87146.0,87127.0,0.03100054]
[1766120653417,8.071e-05,87146.0,87126.0,0.0058]
[1766120653819,8.071e-05,87146.0,87130.0,0.0114845]
[1766120654522,8.071e-05,87146.0,87126.0,0.0058]
[1766120655015,8.071e-05,87146.0,87126.0,0.0172849]
[1766120655328,8.071e-05,87146.0,87125.0,0.00568]
[1766120655621,0.0114831,87141.0,87125.0,0.00568]
[1766120655827,0.0058,87140.0,87120.0,0.0161658]
[1766120656920,0.0114834,87139.0,87120.0,0.00468]
[1766120657119,0.0058,87140.0,87121.0,0.0114857]
[1766120657426,0.0058,87140.0,87123.0,0.0114853]
[1766120658728,0.0058,87140.0,87127.0,0.0114848]
[1766120659827,0.0058,87140.0,87124.0,0.0114853]
[1766120662325,0.0114837,87137.0,87117.0,0.0114862]
[1766120662525,0.20362987,87140.0,87115.0,0.0114864]
[1766120662726,0.00017215,87136.0,87101.0,0.0114883]
[1766120662928,0.0114851,87126.0,87106.0,0.0114876]
[1766120663119,0.19782987,87130.0,87107.0,0.0058]
[1766120663120,0.00010596,87125.0,87107.0,0.0058]
[1766120663321,0.0114853,87124.0,87104.0,0.01159644]
[1766120663626,0.0114857,87122.0,87104.0,0.00466854]
[1766120663826,0.00010596,87125.0,87107.0,0.0114874]
[1766120664227,0.00010596,87125.0,87104.0,0.01719634]
[1766120664228,0.0114854,87124.0,87104.0,0.01719634]
[1766120664428,0.0114857,87122.0,87104.0,0.00570854]
[1766120664733,0.01159116,87125.0,87104.0,0.00570854]
[1766120666036,0.0114855,87123.0,87104.0,0.00570854]
[1766120666335,0.0114857,87122.0,87104.0,0.00570854]
[1766120666932,0.00010596,87125.0,87104.0,0.00570854]
[1766120667230,0.0114853,87124.0,87104.0,0.00570854]
[1766120667820,0.0114853,87124.0,87105.0,0.0114878]
[1766120668225,0.0114853,87124.0,87104.0,0.00570854]
[1766120668427,0.0114853,87124.0,87104.0,0.00010854]
[1766120668627,0.0114857,87122.0,87104.0,0.00010854]
[1766120669342,0.01159116,87125.0,87104.0,0.01159644]
[1766120669929,0.00010596,87125.0,87107.0,0.0114875]
[1766120670527,0.00010596,87125.0,87109.0,0.0114872]
[1766120670929,0.00010596,87125.0,87104.0,0.00010854]
[1766120671134,0.00010596,87125.0,87111.0,0.011487]
[1766120671934,0.00010596,87125.0,87111.0,0.0114869]
[1766120672137,0.00010596,87125.0,87104.0,0.00010854]
[1766120672444,0.0058,87127.0,87113.0,0.0114867]
[1766120673330,0.0058,87127.0,87117.0,0.0114862]
[1766120673730,0.0058,87127.0,87114.0,0.0114865]
[1766120674141,0.0058,87127.0,87116.0,0.0114863]
[1766120674437,0.0058,87127.0,87104.0,0.00010854]
[1766120674644,0.00188,87133.0,87120.0,0.0114858]
[1766120674951,0.00293215,87136.0,87114.0,0.0114866]
[1766120675434,0.00293215,87136.0,87112.0,0.0058]
[1766120675633,0.00293215,87136.0,87126.0,0.0114849]
[1766120676232,0.00293215,87136.0,87128.0,0.0114847]
[1766120676637,0.00293215,87136.0,87130.0,0.0114845]
[1766120676941,2.41272,87163.0,87135.0,0.0114837]
[1766120677135,0.0058,87162.0,87137.0,0.0114835]
[1766120677445,0.0114814,87154.0,87136.0,0.0114837]
[1766120678037,0.0114818,87151.0,87136.0,0.00017215]
[1766120678234,0.0058,87153.0,87136.0,0.00017215]
[1766120678439,0.19782987,87150.0,87136.0,0.00017215]
[1766120678739,0.0058,87153.0,87136.0,0.00017215]
[1766120679645,0.0114817,87152.0,87136.0,0.00017215]
[1766120679940,0.011482,87150.0,87136.0,0.00017215]
[1766120680843,0.0114817,87152.0,87136.0,0.00017215]